Cogmind - Beta 13 @@@ ROGUE MODE // 2024.05.14 @ 18:43:38 Player: mrwizrd Result: Destroyed by O7-ERW(R) with Subdweller Laser Performance ------------- Evolutions (0) 0 Regions Visited (3) 600 Robots Destroyed (10) 50 Value Destroyed (230) 230 Prototype IDs (0) 0 Alien Tech Used (0) 0 Bonus (30) 30 TOTAL SCORE: 910 Bonus ------- Follower Combat Kills 30 Cogmind --------- Core Integrity 0/250 Matter 295/300 Energy 70/100 System Corruption 0% Temperature Cool (6) Movement Core (150) Ox2 Location -10/Subcaves Parts ------- > --- POWER (1) -------- (None) > --- PROPULSION (2) --- (None) > --- UTILITY (2) ------ Small Storage Unit > --- WEAPON (2) ------- Particle Gun > --- INVENTORY (8) ---- Subdweller Optics Signal Interpreter Terrain Scanner Core Shielding Medium Laser Small Laser Peak State ------------ > --- POWER ------------ Light Ion Engine > --- PROPULSION ------- Aluminum Leg Carbon-fiber Leg > --- UTILITY ---------- Small Storage Unit Terrain Scanner > --- WEAPON ----------- Small Laser EM Pulse Cannon > --- INVENTORY -------- Aluminum Leg Subdweller Optics Signal Interpreter Core Shielding Core Shielding Medium Laser Particle Gun Mining Laser [Rating: 12] Favorites ----------- Power Light Ion Engine Engine Light Ion Engine Propulsion Aluminum Leg Leg Aluminum Leg Utility Small Storage Unit Device Subdweller Optics Storage Small Storage Unit Protection Core Shielding Weapon Small Laser Energy Gun Small Laser Energy Cannon EM Pulse Cannon Launcher Grenade Launcher Special Weapon Mining Laser Build | -11 -10 -10 -10 ------- Run | Yrd Mat Min Sub Slots Evolved . | . . . . Power . | . . . . Propulsion . | . . . . Utility . | . . . . Weapon . | . . . . Parts Attached 25 | 6 3 4 12 Power 2 | 1 . 1 . Engine 2 | 1 . 1 . Core . | . . . . Reactor . | . . . . Propulsion 5 | 2 . 1 2 Treads . | . . . . Leg 5 | 2 . 1 2 Wheel . | . . . . Hover . | . . . . Flight . | . . . . Utility 9 | 1 1 1 6 Device 5 | . . 1 4 Storage 1 | 1 . . . Processor . | . . . . Hackware . | . . . . Protection 3 | . 1 . 2 Artifact . | . . . . Weapon 9 | 2 2 1 4 Energy Gun 5 | 2 1 . 2 Energy Cannon 1 | . . . 1 Ballistic Gun . | . . . . Ballistic Cannon . | . . . . Launcher 1 | . 1 . . Special Weapon 2 | . . 1 1 Impact Weapon . | . . . . Slashing Weapon . | . . . . Piercing Weapon . | . . . . Special Melee Weapon . | . . . . Unidentified Prototypes . | . . . . Parts Lost 9 | . . 2 7 Power 2 | . . 1 1 Propulsion 3 | . . . 3 Utility 1 | . . . 1 Weapon 3 | . . 1 2 Highest Loss Streak 5 | . . 2 5 To Critical Strikes . | . . . . Average Slot Usage (%) 89 | . 96 75 94 Engine 8 | . 14 . 11 Leg 27 | . 28 28 26 Device 6 | . . 2 10 Storage 14 | . 14 14 14 Protection 6 | . 11 11 3 Energy Gun 12 | . 16 14 11 Energy Cannon 7 | . . . 12 Launcher 1 | . 11 . . Special Weapon 2 | . . 2 2 Naked Turns . | . . . . Heaviest Build 17 | 12 13 13 17 Greatest Support 25 | 20 20 25 25 Greatest Overweight (x) 3 | 1 . 3 1 Average Overweight (x) . | . . . . Largest Inventory Capacity 8 | 8 8 8 8 Average Capacity 7 | 7 8 8 8 Most Carried 8 | 4 8 8 8 Average Carried 7 | 2 5 7 7 Final Capacity 8 | 8 8 8 8 Final Carried 8 | 4 8 6 6 Class Distribution -------------------- 100% | Mutant Dominant Class ---------------- Mutant | -10/Materials Mutant | -10/Mines Mutant | -10/Subcaves Resources | -11 -10 -10 -10 ----------- Run | Yrd Mat Min Sub Matter Collected 473 | 172 9 36 256 Remotely . | . . . . Salvage Created 258 | . 70 . 188 Parts 23 | . 10 . 13 Haulers Intercepted . | . . . . Recyclers Shooed . | . . . . Parts Field Recycled . | . . . . Retrieved Matter . | . . . . Parts Self-Destructed . | . . . . Prevented . | . . . . Kills | -11 -10 -10 -10 ------- Run | Yrd Mat Min Sub Combat Hostiles Destroyed 10 | . 6 . 4 Guns 4 | . 3 . 1 Cannons 3 | . . . 3 AOE 3 | . 3 . . Classes Destroyed 2 | . 1 . 1 Swarmer 6 | . 6 . . Subdweller 4 | . . . 4 Best Kill Streak 3 | . 3 . 1 Combat Bots Only 3 | . 3 . 1 Max Kills in Single Turn 2 | . 2 . 1 Gunslinging . | . . . . Exploded 1 | . 1 . . Melee . | . . . . Uniques/NPCs Destroyed . | . . . . Combat | -11 -10 -10 -10 -------- Run | Yrd Mat Min Sub Hostile Shots Fired 56 | . 6 . 50 Missed 18 | . 3 . 15 Damage Taken 981 | . 203 43 735 Core 262 | . 20 . 242 Absorbed by Shields . | . . . . Redirected to Shielding 51 | . 4 . 47 Core Remaining (%) 100 | 100 . . . Volleys Fired 45 | . 6 7 32 Largest 2 | . 2 1 1 Hottest 100 | . 70 100 100 Shots Fired 51 | . 12 7 32 Gun 22 | . 6 . 16 Cannon 15 | . . . 15 Launcher 6 | . 6 . . Special 8 | . . 7 1 Kinetic . | . . . . Thermal 30 | . 6 7 17 Explosive 6 | . 6 . . Electromagnetic 15 | . . . 15 Robot Hit Streak 8 | . 6 . 8 Robot Miss Streak 2 | . 2 . 1 Penetration Max . | . . . . Secondary Targets . | . . . . Shots Hit Robots 33 | . 7 . 26 Core Hits 17 | . 7 . 10 Critical Kills . | . . . . Critical Parts Destroyed . | . . . . Critical Strikes . | . . . . Melee Attacks . | . . . . Impact . | . . . . Slashing . | . . . . Piercing . | . . . . Sneak Attacks . | . . . . Combat Hostiles . | . . . . Follow-up Attacks . | . . . . Damage Inflicted 660 | . 177 . 483 Guns 270 | . 54 . 216 Cannons 255 | . . . 255 Explosions 123 | . 123 . . Melee . | . . . . Ramming 12 | . . . 12 Kinetic . | . . . . Thermal 270 | . 54 . 216 Explosive 123 | . 123 . . Electromagnetic 255 | . . . 255 Impact . | . . . . Slashing . | . . . . Piercing . | . . . . Highest Corruption . | . . . . Average Corruption . | . . . . Corruption Purged . | . . . . Corruption Blocked . | . . . . Overload Shots . | . . . . Overflow Damage . | . . . . Projectiles . | . . . . Explosions . | . . . . Melee . | . . . . Knockbacks . | . . . . Impact . | . . . . Kinetic . | . . . . Secondary . | . . . . Self-Inflicted Damage 185 | . 185 . . Shots 5 | . 5 . . Rammed . | . . . . Targets Rammed 8 | . . . 8 Kicked 8 | . . . 8 Crushed . | . . . . Highest Temperature 18 | . 18 . 2 Average Temperature 9 | . 10 . 2 Received Heat Transfer 156 | . . . 156 Siege Activations . | . . . . Robots Corrupted . | . . . . Combat Hostiles . | . . . . Parts Fried . | . . . . Impact Corruptions . | . . . . Robots Melted . | . . . . Combat Hostiles . | . . . . Parts Melted 1 | . . . 1 Heat Transferred 643 | . 125 . 518 Parts Sabotaged . | . . . . Parts Stolen . | . . . . Parts Stripped . | . . . . Power Chain Reactions . | . . . . Alert | -11 -10 -10 -10 ------- Run | Yrd Mat Min Sub Peak Influence 263 | . 263 102 . Initial 102 | . . 102 . Average 86 | . 139 82 . Maximum Alert Level 1 | . 1 . . Low Security (%) 87 | 100 55 100 . Level 1 12 | . 44 . . Level 2 . | . . . . Level 3 . | . . . . Level 4 . | . . . . Level 5 . | . . . . High Security . | . . . . Max Security . | . . . . Squads Dispatched . | . . . . Investigation . | . . . . Extermination . | . . . . Reinforcement . | . . . . Assault . | . . . . Garrison . | . . . . Intercept . | . . . . Searches Triggered . | . . . . Construction Impeded . | . . . . Haulers Reinforced . | . . . . Active Scanning Responses . | . . . . Cargo Convoy Interrupts . | . . . . Stealth | -11 -10 -10 -10 --------- Run | Yrd Mat Min Sub Distress Signals . | . . . . Communications Jammed . | . . . . Distress Signals . | . . . . Times Spotted 13 | . 5 . 8 Peak Tracking Total 3 | . 3 . 2 Tactical Retreats 2 | . . . 2 Traps | -11 -10 -10 -10 ------- Run | Yrd Mat Min Sub Traps Triggered . | . . . . Indirectly . | . . . . Trap Hack Attempts . | . . . . Triggered . | . . . . Disarmed . | . . . . Reprogrammed . | . . . . Reused . | . . . . Traps Extracted . | . . . . Installed . | . . . . Triggered . | . . . . Machines | -11 -10 -10 -10 ---------- Run | Yrd Mat Min Sub Machines Disabled 1 | . 1 . . Max in Single Turn 1 | . 1 . . Machines Repaired . | . . . . Machines Dismantled . | . . . . Machines Sabotaged . | . . . . Overloaded Fab Kills . | . . . . Hacking | -11 -10 -10 -10 --------- Run | Yrd Mat Min Sub Machines Accessed 1 | . . 1 . Terminals . | . . . . Fabricators . | . . . . Repair Stations . | . . . . Recycling Units . | . . . . Scanalyzers . | . . . . Garrison Access . | . . . . Total Hacks 1 | . . 1 . Successful 1 | . . 1 . Failed . | . . . . Catastrophic . | . . . . Database Lockouts . | . . . . Manual . | . . . . Terminals . | . . . . Fabricators . | . . . . Repair Stations . | . . . . Recycling Units . | . . . . Scanalyzers . | . . . . Garrison Access . | . . . . Terminal Hacks 1 | . . 1 . Open Door 1 | . . 1 . Fabricator Hacks . | . . . . Repair Station Hacks . | . . . . Recycling Unit Hacks . | . . . . Scanalyzer . | . . . . Garrison Access Hacks . | . . . . Unauthorized Hacks . | . . . . Terminals . | . . . . Fabricators . | . . . . Repair Stations . | . . . . Recycling Units . | . . . . Scanalyzers . | . . . . Garrison Access . | . . . . Data Cores Recovered . | . . . . Used . | . . . . Hacking Detections . | . . . . Full Trace Events . | . . . . Feedback Events . | . . . . Feedback Blocked . | . . . . Robot Schematics Acquired . | . . . . Robots Built . | . . . . Authchips . | . . . . Time . | . . . . Total Robot Build Rating . | . . . . Part Schematics Acquired . | . . . . Parts Built . | . . . . Authchips . | . . . . Time . | . . . . Total Part Build Rating . | . . . . Parts Repaired . | . . . . Time . | . . . . Parts Recycled . | . . . . Recycled Matter . | . . . . Retrieved Matter . | . . . . Retrieved Components . | . . . . Parts Scanalyzed . | . . . . Part Schematics Acquired . | . . . . Parts Damaged . | . . . . Bothacking | -11 -10 -10 -10 ------------ Run | Yrd Mat Min Sub Used RIF Installer . | . . . . Robots Hacked . | . . . . Non-combat . | . . . . Combat . | . . . . Robot Hacks Applied . | . . . . Relay Couplers Released . | . . . . Fabnet Peak Effective % . | . . . . Robots Rewired . | . . . . Allies Hacked . | . . . . Hacks Repelled . | . . . . Allies | -11 -10 -10 -10 -------- Run | Yrd Mat Min Sub Total Allies 3 | . . 3 . Largest Group 3 | . . 3 3 Highest-Rated Group 40 | . . 40 40 Highest-Rated Ally 16 | . . 16 16 Total Orders 4 | . . . 4 AID 4 | . . . 4 Ally Attacks 31 | . . . 31 Total Damage 387 | . . . 387 Kills 1 | . . . 1 Allies Corrupted . | . . . . Allies Melted . | . . . . Intel | -11 -10 -10 -10 ------- Run | Yrd Mat Min Sub Robot Analysis Total . | . . . . Derelict Logs Recovered 2 | . . 1 1 Drone Launches . | . . . . Drone Recoveries . | . . . . Exploration | -11 -10 -10 -10 ------------- Run | Yrd Mat Min Sub Turns Passed 1486 | 98 185 379 824 Spaces Moved 1048 | 67 129 255 597 Core 5 | 2 . 3 . Treads . | . . . . Legs 1043 | 65 129 252 597 Wheels . | . . . . Hover . | . . . . Flight . | . . . . Fastest Speed 50 | 50 120 120 120 Average Speed 120 | 128 120 120 120 Slowest Speed 200 | 190 120 200 190 Overloaded Moves . | . . . . Propulsion Burnouts . | . . . . Robots Hopped . | . . . . Cave-ins Triggered . | . . . . Exploration Rate (%) 26 | 5 25 41 36 Regions Visited 3 Branch Regions 2 Pre-discovered Areas . | . . . . Known Exits Taken 1 | . . 1 . Unknown Exits Taken 2 | 1 1 . . Scrap Searched 1 | . . . 1 Spaces Dug . | . . . . Terrain Destroyed 60 | . 60 . . Melee . | . . . . Projectile . | . . . . AOE 60 | . 60 . . Terrain Rammed . | . . . . Walls Destroyed . | . . . . Machines Disabled . | . . . . Actions | -11 -10 -10 -10 --------- Run | Yrd Mat Min Sub Total 1192 | 76 146 306 664 Wait 50 | . 1 38 11 Move 1045 | 66 128 254 597 Hop . | . . . . Pick Up 13 | 4 6 1 2 Fast Attach 7 | 6 1 . . Attach 5 | . . 2 3 Detach 1 | . . . 1 Swap 13 | . 2 2 9 Drop 5 | . 2 2 1 Fire 45 | . 6 7 32 Melee . | . . . . Ram . | . . . . Kick 8 | . . . 8 Crush . | . . . . Escape Stasis . | . . . . Rewire . | . . . . Trap . | . . . . Miscellaneous . | . . . . Route ------- -11/Scrapyard -10/Materials -10/Mines (discovered 2 exits: [*Mat] / *Sub) -10/Subcaves History --------- Turn | Location | Event 20 | -11/Scrapyard | Discovered new exit (range 16) 99 | -11/Scrapyard | Entered Materials 250 | -10/Materials | Discovered new exit (range 14) 284 | -10/Materials | Entered Mines 294 | -10/Mines | Met a Derelict who couldn't figure out how to use a Trap Extractor 323 | -10/Mines | Build established: Mutant 371 | -10/Mines | Identified exit to Subcaves 403 | -10/Mines | Assisted by bots powering up and referring to "LRC-V3" 481 | -10/Mines | Discovered new exit (range 11) 663 | -10/Mines | Entered Subcaves 663 | -10/Subcaves | Accompanied by 3 allies 1277 | -10/Subcaves | A swath of the cavern ceiling suddenly collapsed 1460 | -10/Subcaves | Core integrity fell below 50% 1472 | -10/Subcaves | Core integrity fell below 20% 1487 | -10/Subcaves | Destroyed by O7-ERW(R) with Subdweller Laser Last Messages --------------- Subatomizers dissect the Sub. Power Source. A swath of the cavern ceiling suddenly collapses. 1J-AUB(R) destroyed. Kicked KA-BAL(R) out of the way. Acquired 35 matter. Lgt. Ion Engine destroyed. Kicked KA-BAL(R). KA-BAL(R) affixes Scrap Shield Fragment to Scrap Shield. Kicked KA-BAL(R). Kicked KA-BAL(R) out of the way. KA-BAL(R) misfires. KA-BAL(R) affixes Scrap Shield Fragment to Scrap Shield. Mining Laser destroyed. KA-BAL(R) misfires. Carbon-fiber Leg destroyed. EM Pulse Cannon destroyed. Aluminum Leg destroyed. 82-RHW(R) destroyed. O7-ERW(R) affixes Scrap Shield Fragment to Scrap Shield. Core Shielding destroyed. Map ----- +----------------------------------------------------+ | | | | | | | | | | | | | ?????????????????????????????????????????????????? | | ?????????????????????????????????????????????????? | | ?????????????????????????????????????????????????? | | ?????????????????????????????????????????????????? | | ?????????????????????????????????????????????????? | | ?????????????????????????????????????????????????? | | ?????????????????????????????????????????????????? | | ?????????????????????????????????????????????????? | | ?????????????????????????????????????????????????? | | ?????????????????????????????????????????????????? | | ?????????????????????????????????????????????????? | | ?????????????????????????????????????????????????? | | ?????????????????????????????????????????????????? | | ?????????????????????????????????????????????????? | | ??????????????????????????#############??????##??? | | ?????????????????###?????## # # ## # ##??### ##?? | | ????????????????##"####### ### #?? | | ????????????????#"""# ## #?? | | ???????????????##""" *[ # # # #?? | | ?????????? " ###""""!%R @ ######## #?? | | ????????? """ """" !# # #####??????## ##?? | | ??????????"""" " #######???????????## ##??? | | ??????????"#########??????????????????# ####?### | | ??????????????????????????????????????# ##??# # | | ??????????????????????????????????????## ### # | | ???????????????????????????????????????# # | | ???????????????????????????????????????## # | | ??????????????????????????????????? ????## | | ???????????????????????????????????#$????# | | ????????????????????????????????????$ ??## | | ????????????????????????????????????? ??# # ## | | ????????????????????????????????????## ## # ##?? | | ????????????????????????????????????# #" # #??? | | ????????????????????????????????????# # ###? | | ????????????????????????????????????# # #? | | ????????????????????????????????????# #" # #? | | ???????????????????????????????????# ### # #? | | ???????????????????????????????????#"???# # ## | | ???????????????????????????????????#????## # | | ?????????????????????????????????????????# # | | ?????????????????????????????????????????## ## | | ????????????????????????????????????????## ## | | ??????????????????????????????########### # | | ?????????????????????????????## ## ## | +----------------------------------------------------+ Best States ------------- Heat Dissipation 25 Energy Generation 10 Energy Capacity 125 Matter Stores 300 Matter Capacity 300 Sight Range 21 Terrain Scan Range 14 Terrain Scan Density 10 Core Shielding 20 Evasion (%) 55 Item Schematics ----------------- None Robot Schematics ------------------ None Fabricated ------------ Nothing Alien Tech Used ----------------- None Achievements -------------- Let's See Who's Tougher Challenges ------------ None Game ------ Seed WeaponCloakGun Manual? 0 Play Time 00:51:45 Cumulative 11.9 hours Start 2024.05.14 @ 09:06:50 End 2024.05.14 @ 18:43:38 Sessions 2 Manual Loads 0 Difficulty Rogue Special Mode None Game No. 13 Rogue 13 Adventurer 0 Explorer 0 Win Type - Total 0 Types 0/0/0/0/0/0/0/0/0 Lore% 9 Gallery% 10 Achievement% 8 Wizard Run 0 Options --------- Layout 0 ASCII 0 Keyboard 1 Movement Arrows Keybinds 0 Fullscreen 2 Font 24/X11 Map View 76x50 Zoom Use 0% Tactical HUD 0 Map Filters NONE Filters NONE Steam 1 RUN: f401e4af-5c2a-460d-8e4e-767d3e3a47c4